fUSD/lending_fUSD_20250622
["ID","MTS","AMOUNT","RATE_DAILY","PERIOD"]
[366999015,1750609847377,-413.965498,0.00037518,2]
[366999017,1750609847387,-413.965498,0.00037518,2]
[366999019,1750609847396,-413.965498,0.00037518,2]
[366999021,1750609847406,-413.965498,0.00037518,2]
[366999023,1750609847415,-151.0,0.00037518,7]
[366999025,1750609847424,-151.0,0.00037518,7]
[366999027,1750609847433,-151.0,0.00037518,7]
[366999029,1750609847443,-500.0,0.00037518,7]
[366999031,1750609847453,-151.0,0.00037518,7]
[366999033,1750609847462,-500.0,0.00037518,7]
[366999035,1750609847472,-151.0,0.00037518,7]
[366999036,1750609847483,-151.0,0.00037518,7]
[366999039,1750609847493,-151.0,0.00037518,7]
[366999041,1750609847503,-151.0,0.00037518,7]
[366999043,1750609847512,-151.0,0.00037518,7]
[366999044,1750609847521,-151.0,0.00037518,7]
[366999047,1750609847531,-151.0,0.00037518,7]
[366999049,1750609847541,-151.0,0.00037518,7]
[366999051,1750609847550,-278.034055,0.00037518,7]
[366999053,1750609847560,-151.0,0.00037518,7]
[366999055,1750609847570,-151.0,0.00037518,7]
[366999057,1750609847580,-151.0,0.00037518,7]
[366999059,1750609847589,-151.0,0.00037518,7]
[366999061,1750609847600,-151.0,0.00037519,7]
[366999063,1750609847609,-151.0,0.00037519,7]
[366999065,1750609847618,-291.898973,0.00037519,7]
[366999067,1750609847628,-152.800453,0.00037519,7]
[366999069,1750609847637,-151.0,0.00037519,7]
[366999071,1750609847646,-151.0,0.00037519,7]
[366999073,1750609847656,-151.0,0.00037519,7]
[366999075,1750609847665,-151.0,0.00037519,7]
[366999077,1750609847677,-289.618074,0.00037519,7]
[366999079,1750609847687,-2197.098882,0.00037519,7]
[366999081,1750609847697,-2197.098882,0.00037519,7]
[366999083,1750609847706,-2197.098882,0.00037519,7]
[366999085,1750609847716,-2197.098882,0.00037519,7]
[366999087,1750609847725,-2197.098882,0.00037519,7]
[366999089,1750609847735,-2197.098882,0.00037519,7]
[366999091,1750609847744,-2197.098882,0.00037519,7]
[366999093,1750609847753,-154.204407,0.00037519,7]
[366999095,1750609847763,-2197.098882,0.00037519,7]
[366999097,1750609847772,-2197.098882,0.00037519,7]
[366999099,1750609847781,-2197.098882,0.00037519,7]
[366999101,1750609847791,-2197.098882,0.00037519,7]
[366999103,1750609847800,-2197.098882,0.00037519,7]
[366999105,1750609847809,-2197.098882,0.00037519,7]
[366999107,1750609847818,-2197.098882,0.00037519,7]
[366999109,1750609847827,-500.0,0.00037519,7]
[366999111,1750609847837,-500.0,0.00037519,7]
[366999113,1750609847846,-500.0,0.00037519,7]
[366999115,1750609847856,-500.0,0.00037519,7]
[366999117,1750609847865,-500.0,0.00037519,7]
[366999119,1750609847875,-500.0,0.00037519,7]
[366999121,1750609847884,-500.0,0.00037519,7]
[366999123,1750609847893,-500.0,0.00037519,7]
[366999125,1750609847902,-500.0,0.00037519,7]
[366999127,1750609847912,-500.0,0.00037519,7]
[366999129,1750609847921,-500.0,0.00037519,7]
[366999131,1750609847930,-500.0,0.00037519,7]
[366999132,1750609847940,-151.0,0.00037519,7]
[366999135,1750609847950,-151.0,0.00037519,7]
[366999136,1750609847959,-151.0,0.00037519,7]
[366999139,1750609847969,-151.0,0.00037519,7]
[366999141,1750609847979,-151.0,0.00037519,7]
[366999143,1750609847989,-151.0,0.00037519,7]
[366999145,1750609847998,-151.0,0.00037519,7]
[366999146,1750609848008,-151.0,0.00037519,7]
[366999148,1750609848017,-151.0,0.00037519,7]
[366999150,1750609848027,-151.0,0.00037519,7]
[366999152,1750609848036,-151.0,0.00037519,7]
[366999155,1750609848049,-151.0,0.00037519,7]
[366999157,1750609848059,-151.0,0.00037519,7]
[366999159,1750609848068,-151.0,0.00037519,7]
[366999161,1750609848077,-151.0,0.00037519,7]
[366999163,1750609848086,-151.0,0.00037519,7]
[366999165,1750609848097,-151.0,0.00037519,7]
[366999167,1750609848106,-151.0,0.00037519,7]
[366999169,1750609848115,-151.0,0.00037519,7]
[366999170,1750609848126,-152.926286,0.00037519,7]
[366999172,1750609848135,-151.0,0.00037519,7]
[366999175,1750609848144,-151.0,0.00037519,7]
[366999176,1750609848153,-151.0,0.00037519,7]
[366999179,1750609848164,-151.0,0.00037519,7]
[366999181,1750609848173,-151.0,0.00037519,7]
[366999182,1750609848183,-151.0,0.00037519,7]
[366999185,1750609848192,-213.90171,0.00037519,7]
[366999187,1750609848202,-151.0,0.00037519,7]
[366999189,1750609848211,-151.0,0.00037519,7]
[366999190,1750609848221,-151.0,0.00037519,7]
[366999193,1750609848231,-151.0,0.00037519,7]
[366999195,1750609848240,-151.0,0.00037519,7]
[366999196,1750609848250,-151.0,0.00037519,7]
[366999198,1750609848259,-151.0,0.00037519,7]
[366999201,1750609848269,-549.29957859,0.0003752,30]
[366999203,1750609848279,-151.0,0.00037521,7]
[366999205,1750609848288,-151.885998,0.00037521,7]
[366999207,1750609848297,-158.051201,0.00037521,7]
[366999208,1750609848307,-151.0,0.00037521,7]
[366999211,1750609848316,-151.0,0.00037521,7]
[366999213,1750609848326,-151.0,0.00037521,7]
[366999215,1750609848336,-151.0,0.00037521,7]
[366999217,1750609848345,-151.0,0.00037521,7]
[366999219,1750609848355,-181.524814,0.00037521,7]
[366999220,1750609848364,-791.113517,0.00037521,7]
[366999222,1750609848373,-791.113517,0.00037521,7]
[366999224,1750609848383,-791.113517,0.00037521,7]
[366999227,1750609848393,-791.113517,0.00037521,7]
[366999228,1750609848402,-791.113517,0.00037521,7]
[366999231,1750609848412,-791.113517,0.00037521,7]
[366999233,1750609848422,-791.113517,0.00037521,7]
[366999234,1750609848431,-791.113517,0.00037521,7]
[366999236,1750609848440,-791.113517,0.00037521,7]
[366999238,1750609848449,-791.113517,0.00037521,7]
[366999240,1750609848459,-791.113517,0.00037521,7]
[366999242,1750609848469,-791.113517,0.00037521,7]
[366999244,1750609848479,-791.113517,0.00037521,7]
[366999246,1750609848488,-791.113517,0.00037521,7]
[366999248,1750609848498,-151.0,0.00037521,7]
[366999250,1750609848508,-151.0,0.00037521,7]
[366999252,1750609848518,-151.0,0.00037521,7]
[366999254,1750609848527,-151.0,0.00037521,7]
[366999256,1750609848536,-153.311394,0.00037521,7]
[366999258,1750609848546,-368.274676,0.00037521,7]
[366999260,1750609848557,-368.274676,0.00037521,7]
[366999262,1750609848569,-368.274676,0.00037521,7]
[366999264,1750609848578,-368.274676,0.00037521,7]
[366999266,1750609848588,-368.274676,0.00037521,7]
[366999268,1750609848599,-368.274676,0.00037521,7]
[366999270,1750609848608,-368.274676,0.00037521,7]
[366999272,1750609848618,-368.274676,0.00037521,7]
[366999274,1750609848627,-368.274676,0.00037521,7]
[366999276,1750609848637,-368.274676,0.00037521,7]
[366999278,1750609848647,-368.274676,0.00037521,7]
[366999280,1750609848656,-150.0,0.00037524,3]
[366999282,1750609848666,-261.11100396,0.00037524,3]
[366999284,1750609848675,-344.19337075,0.00037524,10]
[366999286,1750609848685,-151.0,0.00037525,7]
[366999288,1750609848694,-151.0,0.00037525,7]
[366999290,1750609848704,-151.0,0.00037525,7]
[366999292,1750609848712,-151.0,0.00037525,7]
[366999294,1750609848722,-151.0,0.00037525,7]
[366999296,1750609848734,-153.726719,0.00037525,7]
[366999298,1750609848743,-909.85966456,0.00037525,2]
[366999300,1750609848754,-375.48064102,0.00037525,2]
[366999302,1750609848764,-156.3421212,0.00037525,4]
[366999304,1750609848774,-392.31928891,0.00037525,2]
[366999306,1750609848786,-565.41545013,0.00037525,5]
[366999308,1750609848795,-202608.69567727,0.00037525,2]
[366999310,1750609848805,-1506.21122404,0.00037525,10]
[366999312,1750609848814,-122433.06609924,0.00037525,2]
[366999314,1750609848825,-10654.94463784,0.00037525,3]
[366999316,1750609848835,-1210.0,0.00037525,2]
[366999318,1750609848846,-705.45878032,0.00037525,2]
[366999320,1750609848856,-363.27743195,0.00037525,2]
[366999322,1750609848866,-1995.44691402,0.00037525,5]
[366999324,1750609848876,-710.55398556,0.00037525,10]
[366999326,1750609848887,-349.37201929,0.00037525,2]
[366999328,1750609848897,-30519.35647357,0.00037525,2]
[366999330,1750609848907,-7966.91936656,0.00037525,7]
[366999332,1750609848918,-622.80044299,0.00037525,6]
[366999334,1750609848928,-763.97962423,0.00037525,2]
[366999337,1750609848939,-1525.50180373,0.00037525,2]
[366999339,1750609848950,-1032.70630393,0.00037525,2]
[366999341,1750609848960,-5202.56209833,0.00037525,2]
[366999343,1750609848970,-534.10454533,0.00037525,7]
[366999344,1750609848982,-2463.94062666,0.00037525,2]
[366999345,1750609848993,-3728.46017727,0.00037525,7]
[366999346,1750609849003,-2714.39363165,0.00037525,2]
[366999347,1750609849014,-217012.52087597,0.00037525,2]
[366999348,1750609849024,-151.77078905,0.00037525,2]
[366999349,1750609849035,-44087.28599434,0.00037525,2]
[366999350,1750609849046,-981.86112576,0.00037525,5]
[366999351,1750609849056,-249.89962048,0.00037525,2]
[366999352,1750609849066,-164.92583744,0.00037525,2]
[366999353,1750609849076,-655.14731767,0.00037525,2]
[366999354,1750609849086,-4687.19811624,0.00037525,2]
[366999355,1750609849097,-1265.58540453,0.00037525,2]
[366999356,1750609849108,-244.08969552,0.00037525,2]
[366999357,1750609849118,-7747.17565282,0.00037525,2]
[366999358,1750609849129,-2267.28575571,0.00037525,10]
[366999359,1750609849139,-1044.65868573,0.00037525,2]
[366999360,1750609849149,-595.13355802,0.00037525,5]
[366999361,1750609849158,-596.6275718,0.00037525,2]
[366999362,1750609849169,-9267.39107819,0.00037525,2]
[366999363,1750609849180,-1315.63512388,0.00037525,2]
[366999364,1750609849190,-2292.85345921,0.00037525,10]
[366999365,1750609849200,-1000.0,0.00037525,10]
[366999366,1750609849211,-3430.68539693,0.00037525,2]
[366999367,1750609849222,-3142.32572384,0.00037525,7]
[366999368,1750609849235,-2202.67010954,0.00037525,2]
[366999369,1750609849245,-22883.16862487,0.00037525,2]
[366999370,1750609849255,-12876.37697781,0.00037525,2]
[366999371,1750609849266,-1926.05563536,0.00037525,2]
[366999372,1750609849276,-184.63226488,0.00037525,2]
[366999373,1750609849286,-5036.75549799,0.00037525,2]
[366999374,1750609849295,-14918.8101603,0.00037525,3]
[366999375,1750609849306,-643.0,0.00037525,2]
[366999376,1750609849316,-3100.0,0.00037525,5]
[366999377,1750609849326,-973.28014894,0.00037525,2]
[366999378,1750609849337,-3022.01684684,0.00037525,5]
[366999379,1750609849347,-7790.09611532,0.00037525,2]
[366999380,1750609849357,-1906.04155391,0.00037525,7]
[366999381,1750609849367,-500.0,0.00037525,10]
[366999382,1750609849378,-574.98276309,0.00037525,2]
[366999383,1750609849389,-1841.91687593,0.00037525,2]
[366999384,1750609849399,-3253.50302187,0.00037525,2]
[366999385,1750609849409,-155.11907939,0.00037525,2]
[366999386,1750609849419,-175.98240902,0.00037525,2]
[366999387,1750609849429,-550.0,0.00037525,2]
[366999388,1750609849439,-1471.34903399,0.00037525,2]
[366999389,1750609849448,-1011.57183151,0.00037525,2]
[366999390,1750609849458,-1041.14490479,0.00037525,7]
[366999391,1750609849468,-1001.03284474,0.00037525,2]
[366999392,1750609849478,-10739.8539913,0.00037525,2]
[366999393,1750609849489,-170424.53925084,0.00037525,2]
[366999394,1750609849499,-15003.73929406,0.00037525,2]
[366999395,1750609849509,-229.76554486,0.00037525,2]
[366999396,1750609849519,-174.37324803,0.00037525,2]
[366999397,1750609849528,-1286.48882997,0.00037525,4]
[366999398,1750609849538,-6000.0,0.00037525,2]
[366999399,1750609849547,-376.76308835,0.00037525,2]
[366999400,1750609849557,-1475.76480945,0.00037525,2]
[366999401,1750609849566,-1037.14218473,0.00037525,2]
[366999402,1750609849575,-466.91747092,0.00037525,7]
[366999403,1750609849585,-1181.31742638,0.00037525,2]
[366999404,1750609849595,-380.83539498,0.00037525,2]
[366999405,1750609849605,-565.17745713,0.00037525,2]
[366999406,1750609849614,-3336.93849827,0.00037525,2]
[366999407,1750609849624,-150.0,0.00037525,2]
[366999408,1750609849633,-7801.07437109,0.00037525,2]
[366999409,1750609849642,-628.55237512,0.00037525,2]
[366999410,1750609849652,-219.71095528,0.00037525,5]
[366999411,1750609849662,-215.47280259,0.00037525,2]
[366999412,1750609849671,-164884.19071952,0.00037525,2]
[366999413,1750609849681,-1070.91570187,0.00037525,2]
[366999414,1750609849691,-21397.50239732,0.00037525,2]
[366999415,1750609849701,-53900.0,0.00037525,2]
[366999416,1750609849711,-2500.0,0.00037525,2]
[366999417,1750609849721,-581.37637731,0.00037525,2]
[366999418,1750609849731,-343.43451755,0.00037525,2]
[366999419,1750609849741,-1879.24675141,0.00037525,2]
[366999420,1750609849752,-3255.23723042,0.00037525,7]
[366999421,1750609849762,-1100.0,0.00037525,2]
[366999422,1750609849772,-915.37525881,0.00037525,2]
[366999423,1750609849781,-27046.90238776,0.00037525,2]
[366999424,1750609849791,-483.27064642,0.00037525,2]
[366999425,1750609849801,-15649.00477201,0.00037525,2]
[366999426,1750609849810,-171.0685869,0.00037525,2]
[366999427,1750609849820,-230.70010958,0.00037525,2]
[366999428,1750609849830,-1593.79322876,0.00037525,2]
[366999429,1750609849840,-56222.82215682,0.00037525,2]
[366999430,1750609849850,-1085.09494605,0.00037525,5]
[366999431,1750609849859,-4918.58383217,0.00037525,10]
[366999432,1750609849873,-550.23706422,0.00037525,2]
[366999433,1750609849883,-5026.50774717,0.00037525,2]
[366999435,1750609849893,-1015.37227231,0.00037525,2]
[366999437,1750609849903,-276.13522902,0.00037525,10]
[366999438,1750609849912,-366.09896286,0.00037525,2]
[366999439,1750609849922,-2213.32993191,0.00037525,2]
[366999440,1750609849932,-284.70532876,0.00037525,2]
[366999441,1750609849942,-7877.72342578,0.00037525,3]
[366999442,1750609849952,-14836.09202558,0.00037525,2]
[366999443,1750609849961,-23125.19841603,0.00037525,2]
[366999444,1750609849971,-500.0,0.00037525,7]
[366999445,1750609849981,-1843.13775392,0.00037525,2]
[366999446,1750609849991,-6803.02160189,0.00037525,4]
[366999447,1750609850001,-1121.53123942,0.00037525,2]
[366999448,1750609850011,-218.32361694,0.00037525,7]
[366999449,1750609850021,-5220.77579643,0.00037525,4]
[366999450,1750609850031,-2564.78938063,0.00037525,2]
[366999451,1750609850040,-301.04483766,0.00037525,5]
[366999452,1750609850053,-403.94224022,0.00037525,2]
[366999453,1750609850063,-14129.53592033,0.00037525,2]
[366999454,1750609850073,-7010.4974215,0.00037525,2]
[366999455,1750609850082,-20333.07453737,0.00037525,2]
[366999456,1750609850093,-2323.18585155,0.00037525,7]
[366999457,1750609850103,-1712.76727497,0.00037525,2]
[366999458,1750609850112,-1436.57141397,0.00037525,2]
[366999459,1750609850123,-866.44156527,0.00037525,2]
[366999460,1750609850134,-203.56894465,0.00037525,2]
[366999461,1750609850144,-615.8021459,0.00037525,5]
[366999462,1750609850154,-283.80225751,0.00037525,2]
[366999463,1750609850165,-5708.11183977,0.00037525,2]
[366999464,1750609850175,-754.69886177,0.00037525,2]
[366999465,1750609850185,-1017.32289033,0.00037525,2]
[366999466,1750609850199,-162.91,0.00037525,2]
[366999467,1750609850209,-1115.14071843,0.00037525,2]
[366999468,1750609850219,-4599.29141411,0.00037525,2]
[366999469,1750609850229,-10237.82337318,0.00037525,2]
[366999470,1750609850239,-162.33977622,0.00037525,2]
[366999471,1750609850469,-2181.53585231,0.00037525,2]
[366999472,1750609850479,-462.34662147,0.00037525,2]
[366999473,1750609850491,-150.0,0.00037525,2]
[366999474,1750609850501,-7514.08932809,0.00037525,2]
[366999475,1750609850512,-161.83422779,0.00037525,2]
[366999476,1750609850521,-160.0,0.00037525,2]
[366999477,1750609850530,-2182.36631391,0.00037525,2]
[366999478,1750609850539,-878.1936495,0.00037525,2]
[366999479,1750609850549,-120422.01417402,0.00037525,5]
[366999480,1750609850558,-36016.49462098,0.00037525,2]
[366999481,1750609850567,-1003.92893843,0.00037525,2]
[366999482,1750609850577,-57129.84313601,0.00037525,5]
[366999483,1750609850586,-6687.92838836,0.00037525,5]
[366999484,1750609850596,-93803.54847204,0.00037525,2]
[366999485,1750609850605,-560.3202213,0.00037525,2]
[366999486,1750609850615,-5752.97205851,0.00037525,2]
[366999487,1750609850625,-4072.08376218,0.00037525,2]
[366999488,1750609850635,-199.39583682,0.00037525,7]
[366999489,1750609850645,-99850.7803249,0.00037525,2]
[366999490,1750609850655,-2126.0,0.00037525,120]
[366999491,1750609850665,-953.0,0.00037525,60]
[366999492,1750609850674,-953.0,0.00037525,60]
[366999493,1750609850684,-953.0,0.00037525,60]
[366999494,1750609850694,-154.0,0.00037525,60]
[366999495,1750609850704,-2211.0,0.00037525,90]
[366999496,1750609850715,-50000.0,0.00037525,30]
[366999497,1750609850724,-50000.0,0.00037525,31]
[366999498,1750609850738,-50000.0,0.00037525,32]
[366999499,1750609850748,-50000.0,0.00037525,33]
[366999500,1750609850758,-50000.0,0.00037525,34]
[366999501,1750609850768,-10110.09400567,0.00037525,35]
[366999502,1750609851462,-1334.45858893,0.00037525,35]
[366999503,1750609851473,-318.18828,0.00037525,35]
[366999504,1750609851486,-2566.5,0.00037525,35]
[366999505,1750609851618,-151.0,0.00037525,7]
[366999507,1750609851628,-7083.48007199,0.00037525,35]
[366999512,1750609852853,-368.274676,0.00037521,7]
[366999513,1750609852863,-368.274676,0.00037521,7]
[366999514,1750609852872,-368.274676,0.00037521,7]
[366999515,1750609852881,-28587.27905341,0.00037525,35]
[366999516,1750609852890,-8550.58480194,0.00037525,36]
[366999517,1750609852904,-6569.56004161,0.00037525,36]
[366999518,1750609852920,-34879.85515645,0.00037525,36]
[366999519,1750609852930,-16777.74065451,0.00037525,37]
[366999520,1750609852941,-9911.0,0.00037525,37]
[366999521,1750609852961,-283.04675583,0.00037525,37]
[366999522,1750609852972,-9015.40347168,0.00037525,37]
[366999523,1750609853000,-14012.80911798,0.00037525,37]
[366999524,1750609853010,-5609.24727328,0.00037525,38]
[366999532,1750609853127,-283.18935422,0.00037525,38]
[366999691,1750609854968,6263.86293264,0.000193,2]
[366999727,1750609855666,-885.0,0.00025682,2]
[366999730,1750609855676,-885.0,0.00028682,2]
[366999732,1750609855686,-209.0,0.0003127,2]
[366999733,1750609855696,-384.01,0.00036143,2]
[366999735,1750609855706,-239.16474323,0.00036955,2]
[366999738,1750609855718,-151.0,0.00037525,7]
[366999740,1750609855728,-151.0,0.00037525,7]
[366999741,1750609855741,-151.0,0.00037525,7]
[366999743,1750609855750,-151.0,0.00037525,7]
[366999745,1750609855761,-151.0,0.00037525,7]
[366999747,1750609855770,-231.72363,0.00037525,7]
[366999749,1750609855781,-44107.5633725,0.00037525,38]
[366999750,1750609855791,-50000.0,0.00037525,39]
[366999751,1750609855800,-428.51366138,0.00037525,60]
[366999752,1750609855809,-994.99,0.00037525,120]
[366999753,1750609855819,-355.89744584,0.00037525,30]
[366999754,1750609855828,-193.45335371,0.00037525,120]
[366999755,1750609855838,-2779.23,0.00037525,120]
[366999756,1750609855847,-208.78472641,0.00037525,91]
[366999757,1750609855858,-152.88861299,0.00037525,120]
[366999758,1750609855868,-1521.72033904,0.00037525,120]
[366999759,1750609855877,-152.71850096,0.00037525,120]
[366999761,1750609855887,-445.07359529,0.00037525,120]
[366999762,1750609855896,-197.17435208,0.00037525,30]
[366999764,1750609855906,-180.16049001,0.00037525,120]
[366999766,1750609855915,-429.48445122,0.00037525,120]
[366999767,1750609855924,-166.55438199,0.00037525,30]
[366999768,1750609855934,-151.67578238,0.00037525,31]
[366999769,1750609855944,-172.8603824,0.00037525,30]
[366999770,1750609855953,-540.94361997,0.00037525,120]
[366999771,1750609855963,-241.11913957,0.00037525,120]
[366999772,1750609855973,-336.71173607,0.00037525,120]
[366999773,1750609855982,-160.14249222,0.00037525,30]
[366999774,1750609855992,-189.65779871,0.00037525,30]
[366999776,1750609856000,-515.15942685,0.00037525,120]
[366999778,1750609856009,-2036.72980261,0.00037525,120]
[366999780,1750609856019,-16308.49013512,0.00037525,30]
[366999782,1750609856030,-2308.81624005,0.00037525,30]
[366999784,1750609856040,-627.18743898,0.00037525,60]
[366999786,1750609856053,-153.61976589,0.00037525,120]
[366999788,1750609856063,-23153.0,0.00037525,30]
[366999790,1750609856073,-748.82539193,0.00037525,120]
[366999791,1750609856084,-1000.0,0.00037525,5]
[366999792,1750609856094,-1000.0,0.00037525,5]
[366999793,1750609856104,-1000.0,0.00037525,5]
[366999794,1750609856114,-1000.0,0.00037525,5]
[366999795,1750609856124,-1000.0,0.00037525,5]
[366999796,1750609856134,-1000.0,0.00037525,5]
[366999797,1750609856144,-1000.0,0.00037525,5]
[366999798,1750609856154,-1000.0,0.00037525,5]
[366999799,1750609856165,-1000.0,0.00037525,5]
[366999800,1750609856175,-953.0,0.00037525,60]
[366999801,1750609856186,-954.0,0.00037525,60]
[366999802,1750609856196,-953.0,0.00037525,60]
[366999803,1750609856207,-317.0,0.00037525,60]
[366999804,1750609856219,-319.0,0.00037525,60]
[366999805,1750609856230,-317.0,0.00037525,60]
[366999806,1750609856242,-269.0,0.00037525,120]
[366999807,1750609856252,-10000.0,0.00037525,120]
[366999808,1750609856263,-20000.0,0.00037525,120]
[366999809,1750609856273,-20000.0,0.00037525,120]
[366999810,1750609856283,-30000.0,0.00037525,90]
[366999811,1750609856293,-2992.73945031,0.00037525,120]
[366999812,1750609856303,-3000.0,0.00037525,2]
[366999813,1750609856314,-3000.0,0.00037525,7]
[366999814,1750609856324,-1080.0,0.00037525,30]
[366999815,1750609856334,-162.4,0.00037525,2]
[366999816,1750609856345,-301.9999997,0.00037525,2]
[366999817,1750609856355,-3154.12599269,0.00037525,2]
[366999818,1750609856365,-500.70818524,0.00037525,2]
[366999819,1750609856376,-3323.34858276,0.00037525,2]
[366999820,1750609856386,-76536.50617222,0.00037525,2]
[366999821,1750609856398,-15776.82646075,0.00037528,2]
[366999822,1750609856408,-583.02483547,0.00037555,37]
[366999823,1750609856418,-151.0,0.00037565,7]
[366999824,1750609856428,-313.78,0.0003759,2]
[366999825,1750609856438,-4225.00221181,0.0003759,2]
[366999826,1750609856448,-300.0,0.00037599,10]
[366999827,1750609856457,-5995.96,0.000376,14]
[366999828,1750609856467,-15776.82646075,0.00037637,2]
[366999829,1750609856478,-350.0,0.00037638,3]
[366999830,1750609856492,-150.0,0.00037638,120]
[366999831,1750609856503,-2181.49347254,0.000377,20]
[366999832,1750609856513,-3300.0,0.000377,13]
[366999833,1750609856523,-1774.54,0.00037727,30]
[366999834,1750609856533,-1774.54,0.00037727,30]
[366999835,1750609856543,-15776.82646075,0.00037746,2]
[366999836,1750609856553,-284.85561644,0.00037781,7]
[366999837,1750609856563,-2489.4480504,0.00037786,17]
[366999838,1750609856574,-600.0,0.000378,13]
[366999839,1750609856584,-57885.53,0.000378,14]
[366999840,1750609856594,-2000.0,0.00037808,120]
[366999841,1750609856604,-2000.0,0.00037808,120]
[366999842,1750609856614,-2000.0,0.00037808,120]
[366999843,1750609856624,-2000.0,0.00037808,120]
[366999844,1750609856635,-2000.0,0.00037808,120]
[366999845,1750609856644,-2000.0,0.00037808,120]
[366999846,1750609856654,-2000.0,0.00037808,120]
[366999847,1750609856665,-2000.0,0.00037808,120]
[366999848,1750609856676,-2000.0,0.00037808,120]
[366999849,1750609856686,-2000.0,0.00037808,120]
[366999850,1750609856696,-2000.0,0.00037808,120]
[366999851,1750609856706,-2000.0,0.00037808,120]
[366999852,1750609856717,-2000.0,0.00037808,120]
[366999853,1750609856726,-2000.0,0.00037808,120]
[366999854,1750609856740,-2000.0,0.00037808,120]
[366999855,1750609856750,-2000.0,0.00037808,120]
[366999856,1750609856761,-2000.0,0.00037808,120]
[366999858,1750609856772,-2000.0,0.00037808,120]
[366999859,1750609856782,-2000.0,0.00037808,120]
[366999860,1750609856792,-2000.0,0.00037808,120]
[366999861,1750609856802,-2000.0,0.00037808,120]
[366999862,1750609856812,-2000.0,0.00037808,120]
[366999863,1750609856822,-2000.0,0.00037808,120]
[366999864,1750609856832,-2000.0,0.00037808,120]
[366999865,1750609856842,-729.0,0.00037808,120]
[366999866,1750609856852,-4000.0,0.00037812,4]
[366999867,1750609856862,-150.0,0.00037831,2]
[366999868,1750609856872,-15776.82646075,0.00037855,2]
[366999869,1750609856882,-450.0,0.0003787,2]
[366999870,1750609856892,-2255.0,0.00037899,20]
[366999871,1750609856902,-600.0,0.000379,13]
[366999872,1750609856911,-1514.88339781,0.000379,120]
[366999873,1750609856925,-150.0,0.00037933,120]
[366999874,1750609856935,-6586.83766205,0.00037964,2]
[366999875,1750609856965,-992.26127,0.00028,2]
[366999878,1750609916984,-500.0,0.00019399,2]
[366999879,1750609917018,-500.0,0.00019399,2]
[366999880,1750609917050,-188.52140202,0.00019399,2]
[366999881,1750609917084,-367.50989143,0.00019399,2]
[366999882,1750609917116,-500.0,0.00019399,2]
[366999883,1750609917146,-500.0,0.00019399,2]
[366999884,1750609917177,-280.08782024,0.00019399,2]
[366999885,1750609917207,-556.10907675,0.00019399,2]
[366999886,1750609917238,-602.01001192,0.00019399,2]
[366999887,1750609917269,-556.10907675,0.00019399,2]
[366999888,1750609917302,-287.67314496,0.00019399,2]
[366999889,1750609917333,-556.10907675,0.00019399,2]
[366999890,1750609917363,-500.0,0.00019399,2]
[366999891,1750609917395,-155.63192161,0.00019399,2]
[366999892,1750609917529,-400.47715514,0.00019399,2]
[366999893,1750609917561,-556.10907675,0.00019399,2]
[366999894,1750609917592,-556.10907675,0.00019399,2]
[366999895,1750609917622,-556.10907675,0.00019399,2]
[366999896,1750609917652,-556.10907675,0.00019399,2]
[366999897,1750609917682,-500.0,0.00019399,2]
[366999898,1750609917712,-500.0,0.00019399,2]
[366999899,1750609918075,-500.0,0.00019399,2]
[366999900,1750609918106,-556.10907675,0.00019399,2]
[366999901,1750609918135,-556.10907675,0.00019399,2]
[366999902,1750609918167,-556.10907675,0.00019399,2]
[366999903,1750609918196,-357.40953847,0.00019399,2]
[366999904,1750609918310,-198.69953828,0.00019399,2]
[366999905,1750609918339,-556.10907675,0.00019399,2]
[366999906,1750609918369,-500.0,0.00019399,2]
[366999907,1750609918396,-500.0,0.00019399,2]
[366999908,1750609918424,-200.0,0.00019399,2]
[366999909,1750609918453,-556.10907675,0.00019399,2]
[366999910,1750609918482,-500.0,0.00019399,2]